bitfinex-derivatives/quotes_SOLF0:USTF0_20240925
["timestamp","ask_amount","ask_price","bid_price","bid_amount"]
[1727230462873,6.00878634,152.44,152.32,12.61]
[1727230463073,6.00878634,152.44,152.37,12.61]
[1727230463474,3.2803,152.42,152.37,15.8912]
[1727230464774,6.00878634,152.44,152.39,12.61]
[1727230465086,78.8,152.54,152.32,12.61]
[1727230465087,12.61,152.53,152.41,12.61]
[1727230465274,2.6471,152.5,152.41,12.61]
[1727230465479,3.279,152.48,152.43,15.8898]
[1727230468385,3.2788,152.49,152.44,3.2796]
[1727230469387,3.2789,152.48,152.44,3.2796]
[1727230469988,3.2787,152.49,152.45,3.2795]
[1727230470191,2.6471,152.5,152.45,12.61]
[1727230470488,5.9258,152.5,152.45,12.61]
[1727230470690,5.9258,152.5,152.45,15.8895]
[1727230470881,5.9258,152.5,152.45,12.61]
[1727230472290,5.9258,152.5,152.46,3.2793]
[1727230472486,5.9258,152.5,152.45,12.61]
[1727230473797,5.9258,152.5,152.45,15.8894]
[1727230473993,3.2781,152.52,152.47,12.61]
[1727230474604,6.47758501,152.53,152.47,12.61]
[1727230475492,6.47758501,152.53,152.48,3.2788]
[1727230475693,3.2779,152.53,152.47,12.61]
[1727230475898,5.9725,152.54,152.47,12.61]
[1727230476703,5.9725,152.54,152.49,3.2785]
[1727230477606,3.2778,152.53,152.49,3.2785]
[1727230477802,2.6949,152.54,152.48,3.2789]
[1727230478899,3.2781,152.52,152.48,3.2789]
[1727230484406,3.2781,152.52,152.4,416.74]
[1727230484407,3.2787,152.49,152.4,416.74]
[1727230484611,9.3445,152.53,152.48,8.07]
[1727230484806,12.6090631,152.53,152.48,8.07]
[1727230485007,4.5390631,152.53,152.49,8.07]
[1727230485606,3.2784,152.51,152.49,8.07]
[1727230490110,3.2785,152.5,152.49,8.07]
[1727230494510,3.2785,152.5,152.47,11.3491]
[1727230495614,3.2785,152.5,152.47,8.07]
[1727230499411,3.2785,152.5,152.49,8.07]
[1727230503217,3.2789,152.48,152.38,78.72]
[1727230503418,3.2789,152.48,152.46,8.07]
[1727230503613,8.07,152.52,152.46,8.07]
[1727230505118,3.2789,152.48,152.46,8.07]
[1727230508022,3.2788,152.49,152.46,8.07]
[1727230509418,8.07,152.52,152.37,3.20334321]
[1727230509620,8.07,152.47,152.32,78.72]
[1727230509821,8.07,152.47,152.43,8.07]
[1727230511827,3.2796,152.45,152.43,8.07]
[1727230512322,11.33759129,152.45,152.39,8.07]
[1727230512918,12.63839129,152.45,152.39,8.07]
[1727230513122,12.63839129,152.45,152.4,8.07]
[1727230513823,12.63839129,152.45,152.32,78.72]
[1727230513824,4.56839129,152.45,152.42,8.07]
[1727230515825,3.2799,152.44,152.42,8.07]
[1727230516728,3.2799,152.44,152.4,11.3505]
[1727230520934,3.28,152.43,152.4,11.3505]
[1727230523530,3.2798,152.44,152.4,11.3505]
[1727230523929,3.2798,152.44,152.41,3.2803]
[1727230525036,3.2798,152.44,152.4,11.3506]
[1727230526934,4.56839129,152.45,152.38,3.2809]
[1727230527127,8.07,152.44,152.39,8.07]
[1727230527640,3.2803,152.42,152.39,8.07]
[1727230527838,3.2803,152.42,152.39,11.3508]
[1727230529341,12.63839129,152.45,152.34,3.33136405]
[1727230529342,4.56839129,152.45,152.4,11.3506]
[1727230530936,3.2799,152.44,152.4,11.3506]
[1727230534041,3.2802,152.42,152.39,3.2808]
[1727230534237,8.07,152.44,152.39,8.07]
[1727230534445,8.07,152.42,152.29,416.76]
[1727230534737,1.3531,152.44,152.34,8.07]
[1727230534937,8.07,152.39,152.34,8.07]
[1727230535536,3.2813,152.37,152.34,8.07]
[1727230535834,8.07,152.39,152.29,78.76]
[1727230536040,8.07,152.4,152.35,8.07]
[1727230536644,3.2812,152.38,152.35,8.07]
[1727230538939,3.2812,152.38,152.26,90.90824269]
[1727230538940,8.07,152.38,152.26,90.90824269]
[1727230539146,8.07,152.38,152.33,8.07]
[1727230539147,3.26384063,152.37,152.33,8.07]
[1727230539738,1.3531,152.44,152.26,90.90824269]
[1727230539739,1.3531,152.44,152.32,8.07]
[1727230539940,10.7883,152.37,152.32,8.07]
[1727230540138,3.2819,152.35,152.32,8.07]
[1727230544644,3.2819,152.34,152.3,3.2827]
[1727230544843,3.2819,152.34,152.31,8.07]
[1727230550146,3.2819,152.34,152.31,11.3525]
[1727230553353,8.07,152.36,152.31,11.3525]
[1727230553354,3.2818,152.35,152.31,11.3525]
[1727230554254,14.14767248,152.37,152.32,8.07]
[1727230555150,14.14767248,152.37,152.32,11.3523]
[1727230555354,8.07,152.36,152.32,8.07]
[1727230555953,3.282,152.34,152.31,11.3525]
[1727230556551,3.2818,152.35,152.31,11.3525]
[1727230557658,11.3518,152.35,152.31,11.3525]
[1727230557957,8.07,152.32,152.26,87.58804565]
[1727230558157,1.3386,152.36,152.24,8.07]
[1727230558357,1.3386,152.36,152.24,11.354]
[1727230558358,11.3532,152.29,152.24,11.354]
[1727230558559,8.07,152.29,152.24,11.354]
[1727230559259,3.2832,152.28,152.25,3.2838]
[1727230560563,3.2832,152.28,152.25,11.3538]
[1727230561263,3.2831,152.29,152.25,11.3538]
[1727230562356,1.3386,152.36,152.28,8.07]
[1727230562662,8.07,152.33,152.28,8.07]
[1727230563063,3.2825,152.32,152.28,11.3532]
[1727230567468,3.2826,152.31,152.28,11.3532]
[1727230569970,3.2824,152.32,152.28,11.3532]
[1727230570569,8.07,152.33,152.28,11.3532]
[1727230571874,8.07,152.36,152.31,8.07]
[1727230572265,3.282,152.34,152.31,11.3526]
[1727230573768,3.2817,152.35,152.32,3.2823]
[1727230574071,3.2817,152.35,152.31,8.07]
[1727230574376,3.2817,152.35,152.31,11.3525]
[1727230575376,3.2819,152.34,152.31,11.3525]
[1727230575577,8.07,152.34,152.19,344.5704]
[1727230575776,3.2823,152.33,152.29,8.07]
[1727230576077,3.2823,152.33,152.29,11.3528]
[1727230579277,3.2823,152.33,152.3,3.2828]
[1727230584386,11.3519,152.35,152.31,3.2825]
[1727230584592,3.2819,152.35,152.31,8.07]
[1727230584787,14.14767248,152.37,152.31,8.07]
[1727230585189,3.2816,152.36,152.32,3.2822]
[1727230585386,3.2816,152.36,152.31,8.07]
[1727230585692,3.2816,152.36,152.32,8.07]
[1727230586287,3.2817,152.35,152.32,8.07]
[1727230586688,3.2817,152.35,152.27,3.32577576]
[1727230586689,3.2817,152.35,152.31,8.07]
[1727230586888,3.2822,152.33,152.31,8.07]
[1727230587089,8.07,152.33,152.2,78.8]
[1727230587592,8.07,152.33,152.28,3.283]
[1727230588789,3.2826,152.31,152.28,3.283]
[1727230588987,3.25024965,152.36,152.29,3.283]
[1727230589288,8.07,152.34,152.29,11.353]
[1727230589487,3.2824,152.32,152.29,11.353]
[1727230590294,3.2822,152.33,152.29,11.353]
[1727230593296,3.2822,152.33,152.2,338.0]
[1727230593297,3.2819,152.34,152.3,8.07]
[1727230594005,11.3519,152.35,152.31,3.2824]
[1727230594694,11.3519,152.35,152.32,3.2823]
[1727230596291,3.2819,152.35,152.32,3.2823]
[1727230596498,3.2816,152.36,152.32,3.2823]
[1727230597087,8.07,152.35,152.31,3.2825]
[1727230597492,8.07,152.35,152.3,8.07]
[1727230598389,8.07,152.34,152.3,11.3527]
[1727230599500,3.2822,152.33,152.3,11.3527]
[1727230601703,6.0102532,152.37,152.31,11.3525]
[1727230601891,14.0802532,152.37,152.31,11.3525]
[1727230602097,2.7183,152.37,152.33,8.07]
[1727230602298,8.07,152.38,152.33,8.07]
[1727230602504,8.07,152.4,152.34,8.07]
[1727230602697,3.2813,152.37,152.34,11.3519]
[1727230602900,1.296,152.41,152.36,8.07]
[1727230603505,3.2811,152.38,152.36,8.07]
[1727230603697,3.2811,152.38,152.35,8.07]
[1727230604499,3.2813,152.37,152.35,8.07]
[1727230604804,3.2813,152.37,152.34,8.07]
[1727230605001,8.07,152.38,152.34,8.07]
[1727230605197,3.2813,152.37,152.34,8.07]
[1727230605793,3.2816,152.36,152.33,8.07]
[1727230606704,1.296,152.41,152.33,8.07]
[1727230606705,3.2818,152.35,152.33,8.07]
[1727230606905,8.07,152.37,152.33,8.07]
[1727230607205,3.2816,152.36,152.33,8.07]
[1727230610999,3.2814,152.37,152.33,3.2821]
[1727230611205,12.67400916,152.41,152.35,8.07]
[1727230611404,8.07,152.4,152.35,8.07]
[1727230611606,8.07,152.4,152.35,11.3517]
[1727230612202,3.2812,152.38,152.35,11.3517]
[1727230613110,3.2812,152.38,152.35,8.07]
[1727230614910,3.2815,152.36,152.33,11.3521]
[1727230615802,3.2815,152.36,152.33,3.2821]
[1727230616207,3.2815,152.36,152.33,11.3521]
[1727230616610,3.2817,152.35,152.33,8.07]
[1727230617508,3.2816,152.36,152.33,8.07]
[1727230620010,3.2816,152.36,152.33,11.3521]
[1727230621815,3.2816,152.36,152.33,8.07]
[1727230622715,3.25847369,152.36,152.3,3.2826]
[1727230623009,8.07,152.35,152.24,338.0]
[1727230623211,8.07,152.34,152.29,8.07]
[1727230623408,3.2824,152.32,152.29,11.3529]
[1727230625120,3.2828,152.3,152.29,8.07]
[1727230626013,3.2826,152.31,152.29,8.07]
[1727230626408,8.07,152.33,152.27,8.07]
[1727230626816,3.2828,152.3,152.27,11.3533]
[1727230627118,8.07,152.3,152.25,8.07]
[1727230627308,3.24827586,152.35,152.22,416.78]
[1727230627309,3.2826,152.31,152.27,11.3533]
[1727230628012,8.07,152.3,152.22,78.78]
[1727230628212,10.7472,152.32,152.27,8.07]
[1727230628616,2.6772,152.32,152.28,8.07]
[1727230629311,3.2827,152.31,152.28,8.07]
[1727230631820,3.2827,152.31,152.27,11.3534]
[1727230635325,3.2827,152.31,152.28,3.2832]
[1727230635624,14.0296,152.32,152.28,11.3532]
[1727230636424,1.3309,152.36,152.31,8.07]
[1727230636621,1.3309,152.36,152.33,8.07]
[1727230636827,3.2814,152.37,152.34,8.07]
[1727230637425,3.2812,152.38,152.34,11.3519]
[1727230637626,3.2812,152.38,152.35,8.07]
[1727230639224,3.2808,152.39,152.35,11.3517]
[1727230640127,13.97,152.4,152.35,8.07]
[1727230640522,5.9,152.4,152.37,8.07]
[1727230640726,4.6182,152.4,152.37,8.07]
[1727230640927,3.2807,152.4,152.37,8.07]
[1727230641926,3.2804,152.41,152.37,11.3512]
[1727230642335,8.07,152.42,152.37,8.07]
[1727230642722,8.07,152.4,152.29,341.24159645]
[1727230642927,8.07,152.4,152.35,8.07]
[1727230643125,8.07,152.41,152.36,8.07]
[1727230643327,3.2807,152.4,152.36,11.3513]
[1727230644323,4.5761,152.43,152.39,3.2808]
[1727230644532,3.28,152.43,152.41,8.07]
[1727230644835,2.681,152.44,152.41,8.07]
[1727230645134,8.07,152.48,152.43,8.07]
[1727230646130,3.2796,152.45,152.43,8.07]
[1727230646331,8.07,152.48,152.43,8.07]
[1727230647324,3.2795,152.46,152.43,8.07]
[1727230647835,8.07,152.48,152.43,8.07]
[1727230647836,3.2796,152.45,152.43,8.07]
[1727230648335,8.07,152.47,152.42,8.07]
[1727230649228,8.07,152.45,152.4,8.07]
[1727230649534,8.07,152.44,152.39,8.07]
[1727230649832,8.07,152.4,152.35,8.07]
[1727230650035,8.07,152.42,152.36,8.07]
[1727230650237,3.2808,152.4,152.36,8.07]
[1727230650629,3.2808,152.39,152.36,8.07]
[1727230651031,3.2808,152.39,152.37,8.07]
[1727230651730,3.2811,152.38,152.36,8.07]
[1727230651931,8.07,152.39,152.34,8.07]
[1727230654227,3.2817,152.35,152.33,8.07]
[1727230654433,8.07,152.38,152.33,8.07]
[1727230655231,3.2818,152.35,152.33,8.07]
[1727230655842,8.07,152.35,152.31,87.5664516]
[1727230656139,3.2821,152.34,152.32,8.07]
[1727230656341,10.8404,152.37,152.32,8.07]
[1727230656644,3.282,152.34,152.32,8.07]
[1727230661648,8.07,152.34,152.29,8.07]
[1727230662042,3.2822,152.33,152.29,11.353]
[1727230662238,3.2822,152.33,152.31,8.07]
[1727230663939,8.07,152.36,152.31,8.07]
[1727230664135,3.2818,152.35,152.32,8.07]
[1727230664337,2.7704,152.37,152.34,8.07]
[1727230664544,3.2816,152.36,152.34,8.07]
[1727230664933,10.8404,152.37,152.32,8.07]
[1727230665537,8.07,152.34,152.23,338.0]
[1727230665739,8.07,152.32,152.13,6.5726]
[1727230665943,8.07,152.32,152.12,226.0]
[1727230665944,8.07,152.26,152.12,226.0]
[1727230666137,45.39133037,152.36,152.21,8.07]
[1727230666138,8.07,152.25,152.21,8.07]
[1727230667349,3.2842,152.24,152.2,11.3549]
[1727230668351,3.2842,152.24,152.2,3.2849]
[1727230668551,3.2839,152.25,152.21,3.2847]
[1727230669450,3.2836,152.26,152.22,3.2844]
[1727230669759,3.28547019,152.33,152.24,12.62]
[1727230670055,12.62,152.34,152.25,3.2838]
[1727230670056,3.2829,152.3,152.25,3.2838]
[1727230670253,12.62,152.34,152.18,425.62684643]
[1727230670254,3.36694985,152.31,152.22,15.82530472]
[1727230670551,12.62,152.32,152.22,12.62]
[1727230670752,12.62,152.3,152.2,12.62]
[1727230671650,3.2834,152.27,152.2,12.62]
[1727230672044,12.62,152.3,152.2,12.62]
[1727230672452,3.2833,152.28,152.23,3.2841]
[1727230673548,12.62,152.27,152.22,3.2845]
[1727230674048,3.2837,152.26,152.22,3.2845]
[1727230681156,3.2841,152.24,152.16,15.89418621]
[1727230681454,12.62,152.23,152.14,12.62]
[1727230681657,3.2847,152.21,152.17,3.2854]
[1727230681861,12.62,152.25,152.16,12.62]
[1727230682261,3.2839,152.25,152.18,12.62]
[1727230682559,4.0204,152.28,152.2,12.62]
[1727230683360,4.0204,152.28,152.18,12.62]
[1727230683559,12.62,152.27,152.18,12.62]
[1727230683950,12.62,152.27,152.2,3.2848]
[1727230684263,3.22718004,152.26,152.16,12.62]
[1727230684563,12.62,152.27,152.18,12.62]
[1727230684749,15.8579279,152.27,152.18,12.62]
[1727230684954,12.62,152.27,152.18,12.62]
[1727230685259,4.0204,152.28,152.2,12.62]
[1727230685456,3.2835,152.27,152.23,3.2841]
[1727230685760,4.0204,152.28,152.18,15.91838849]
[1727230685947,12.62,152.27,152.18,12.62]
[1727230686152,3.284,152.25,152.18,12.62]
[1727230687162,3.2841,152.24,152.2,3.2849]
[1727230688360,16.6404,152.28,152.18,12.62]
[1727230689458,3.2839,152.25,152.2,3.2848]
[1727230689658,16.6404,152.28,152.2,3.2848]
[1727230689862,12.62,152.26,152.15,12.62]
[1727230690064,12.62,152.26,152.15,15.90535755]
[1727230690262,12.62,152.24,152.18,3.2853]
[1727230690760,3.2847,152.22,152.18,3.2853]
[1727230691157,12.62,152.24,152.17,3.2856]
[1727230691356,3.2845,152.22,152.17,3.2856]
[1727230691757,12.62,152.24,152.17,3.2856]
[1727230691957,3.2845,152.22,152.17,3.2856]
[1727230692165,12.62,152.24,152.17,3.2856]
[1727230692464,3.2845,152.22,152.17,3.2856]
[1727230693065,3.2847,152.21,152.17,3.2856]
[1727230694465,3.2845,152.22,152.18,3.2853]
[1727230694662,12.62,152.24,152.15,12.62]
[1727230694866,12.62,152.26,152.16,12.62]
[1727230695160,16.6404,152.28,152.19,12.62]
[1727230695755,3.2837,152.26,152.22,3.2844]
[1727230696663,3.284,152.25,152.21,3.2847]
[1727230698470,3.2837,152.26,152.19,12.62]
[1727230698865,16.6404,152.28,152.21,3.2847]
[1727230699668,12.62,152.26,152.2,3.2849]
[1727230700061,3.2841,152.24,152.2,3.2849]
[1727230702573,3.2844,152.23,152.19,3.2851]
[1727230703965,3.2844,152.23,152.17,12.62]
[1727230704171,3.2842,152.24,152.2,3.2849]
[1727230705369,3.2839,152.25,152.21,3.2846]
[1727230706274,3.2841,152.24,152.21,3.2846]
[1727230706773,12.62,152.26,152.2,3.2849]
[1727230708078,3.2843,152.24,152.2,3.2849]
[1727230708478,12.62,152.26,152.2,3.2849]
[1727230708879,12.62,152.26,152.19,3.2851]
[1727230709177,12.62,152.24,152.19,3.2851]
[1727230710776,3.2845,152.22,152.19,3.2851]
[1727230711884,12.62,152.26,152.17,12.62]
[1727230712682,3.284,152.25,152.21,3.2846]
[1727230712876,4.0204,152.28,152.18,12.62]
[1727230712877,16.6404,152.28,152.18,12.62]
[1727230713982,3.2839,152.26,152.18,12.62]
[1727230714785,3.2839,152.26,152.22,3.2844]
[1727230714984,3.2839,152.26,152.18,12.62]
[1727230715191,16.6404,152.28,152.18,12.62]
[1727230715391,16.6404,152.28,152.2,3.2848]
[1727230715692,12.62,152.26,152.17,12.62]
[1727230715888,12.62,152.26,152.19,3.2851]
[1727230716493,3.2844,152.23,152.19,3.2851]
[1727230718182,3.2845,152.22,152.18,3.2853]
[1727230718388,12.62,152.24,152.15,12.62]
[1727230718683,12.62,152.22,152.13,100.27284585]
[1727230719386,3.2853,152.19,152.13,100.27284585]
[1727230719986,12.62,152.22,152.13,100.27284585]
[1727230720287,3.285,152.2,152.16,3.2857]
[1727230720482,12.62,152.23,152.14,15.87948326]
[1727230721090,15.9044,152.23,152.19,3.285]
[1727230721394,12.62,152.23,152.19,3.285]
[1727230721588,3.2843,152.23,152.2,3.2849]
[1727230721981,4.0204,152.28,152.16,12.62]
[1727230721982,12.62,152.27,152.16,12.62]
[1727230722382,3.284,152.25,152.21,3.2846]
[1727230726091,12.62,152.27,152.22,3.2843]
[1727230727891,3.2837,152.26,152.22,3.2843]
[1727230728093,3.2837,152.26,152.23,3.2843]
[1727230728488,3.2837,152.26,152.19,12.62]
[1727230728691,3.2837,152.26,152.22,3.2844]
[1727230729095,3.2839,152.25,152.22,3.2844]
[1727230731499,3.2839,152.25,152.2,3.2847]
[1727230731905,3.2842,152.24,152.2,3.2847]
[1727230732405,3.2842,152.24,152.21,3.2847]
[1727230732806,3.2839,152.25,152.21,3.2847]
[1727230734403,11.3539,152.25,152.21,11.3547]
[1727230740311,3.2839,152.25,152.22,3.2845]
[1727230741417,3.2835,152.27,152.23,8.07]
[1727230741617,4.0204,152.28,152.22,8.07]
[1727230741807,8.07,152.25,152.21,8.07]
[1727230742112,8.07,152.25,152.2,11.3549]
[1727230742417,8.07,152.25,152.2,8.07]
[1727230742613,8.07,152.24,152.19,8.07]
[1727230742815,8.07,152.24,152.14,341.25948326]
[1727230742816,8.07,152.24,152.18,8.07]
[1727230743408,11.3542,152.24,152.2,3.2849]
[1727230747322,3.2842,152.24,152.2,3.2849]
[1727230748621,3.2836,152.26,152.21,8.07]
[1727230748925,8.07,152.26,152.21,8.07]
[1727230749125,3.2839,152.25,152.21,11.3547]
[1727230750226,12.0904,152.28,152.23,8.07]
[1727230750618,25.14130411,152.28,152.23,8.07]
[1727230750819,12.0904,152.28,152.23,8.07]
[1727230751218,3.2837,152.26,152.23,8.07]
[1727230751925,3.2837,152.26,152.22,11.3544]
[1727230752816,3.2839,152.25,152.22,3.2844]
[1727230754321,3.2839,152.25,152.21,11.3546]
[1727230754723,3.2841,152.24,152.2,8.07]
[1727230755016,11.3541,152.24,152.2,8.07]
[1727230755220,11.3541,152.24,152.2,11.3548]
[1727230755624,11.3541,152.24,152.2,3.2848]
[1727230756121,4.0204,152.28,152.19,8.07]
[1727230756122,11.3543,152.23,152.19,3.2851]
[1727230756627,8.07,152.23,152.19,3.2851]
[1727230757923,3.2846,152.22,152.19,3.2851]
[1727230758533,3.2843,152.23,152.2,3.2849]
[1727230758830,8.07,152.25,152.21,8.07]
[1727230759227,3.2842,152.24,152.21,8.07]
[1727230760838,3.2842,152.24,152.17,3.2714441]
[1727230760839,3.2844,152.23,152.19,8.07]
[1727230761028,3.2844,152.23,152.13,87.65284585]
[1727230761029,8.07,152.23,152.18,8.07]
[1727230762933,3.2846,152.22,152.19,3.285]
[1727230763524,8.07,152.21,152.13,87.65284585]
[1727230763834,8.07,152.21,152.15,8.07]
[1727230764524,3.285,152.2,152.16,3.2858]
[1727230765231,11.355,152.2,152.16,3.2858]
[1727230766528,3.285,152.2,152.16,3.2858]
[1727230766723,11.355,152.2,152.16,3.2858]
[1727230767231,3.2854,152.18,152.13,87.65284585]
[1727230767427,8.07,152.2,152.13,87.65284585]
[1727230767631,8.07,152.2,152.15,8.07]
[1727230767832,3.2852,152.19,152.16,3.2858]
[1727230771241,3.2852,152.19,152.16,11.3558]
[1727230773439,3.285,152.2,152.16,11.3558]
[1727230773639,8.07,152.21,152.16,11.3558]
[1727230774836,3.2852,152.19,152.16,11.3558]
[1727230776639,3.285,152.2,152.16,11.3558]
[1727230777145,3.2849,152.21,152.17,11.3556]
[1727230780245,3.2849,152.2,152.17,11.3556]
[1727230785346,3.2848,152.21,152.18,3.2854]
[1727230786441,8.07,152.25,152.2,8.07]
[1727230787149,3.2842,152.24,152.2,11.3549]
[1727230787944,3.2842,152.24,152.21,3.2847]
[1727230788145,3.2843,152.23,152.13,425.65284585]
[1727230788351,8.07,152.23,152.18,11.3552]
[1727230789753,3.2846,152.22,152.18,11.3552]
[1727230790446,3.2848,152.21,152.18,3.2852]
[1727230790844,3.2848,152.21,152.19,8.07]
[1727230791247,8.07,152.24,152.2,8.07]
[1727230791746,3.2844,152.23,152.2,8.07]
[1727230793348,11.3541,152.24,152.2,11.3548]
[1727230793552,8.07,152.24,152.2,11.3548]
[1727230793748,2.6523,152.26,152.2,11.3548]
[1727230794051,2.6523,152.26,152.23,8.07]
[1727230795350,3.284,152.25,152.23,8.07]
[1727230801358,5.936,152.26,152.22,3.2845]
[1727230801566,3.2837,152.26,152.24,8.07]
[1727230802067,3.2835,152.27,152.24,11.354]
[1727230802461,3.2835,152.27,152.24,8.07]
[1727230802666,9.4422,152.29,152.24,8.07]
[1727230804064,8.07,152.25,152.16,3.2370531]
[1727230804369,8.07,152.25,152.2,8.07]
[1727230804764,3.2842,152.24,152.2,8.07]
[1727230804958,3.2842,152.24,152.21,8.07]
[1727230805768,3.2839,152.25,152.21,11.3547]
[1727230806070,8.07,152.26,152.21,8.07]
[1727230806573,3.2841,152.24,152.21,8.07]
[1727230807068,3.2839,152.25,152.21,11.3547]
[1727230807668,3.2841,152.24,152.2,3.2849]
[1727230807868,3.2841,152.24,152.2,11.3549]
[1727230810475,3.2843,152.23,152.2,11.3549]
[1727230810878,3.2843,152.23,152.2,8.07]
[1727230814570,3.2843,152.23,152.19,3.2851]
[1727230814767,3.2843,152.23,152.21,8.07]
[1727230816970,3.23628494,152.22,152.13,425.65555132]
[1727230817170,10.6588,152.22,152.17,8.07]
[1727230817376,13.96408889,152.22,152.17,8.07]
[1727230817977,3.2852,152.19,152.17,8.07]
[1727230820280,3.2852,152.19,152.15,3.2859]
[1727230820477,3.2852,152.19,152.16,8.07]
[1727230821477,3.2857,152.17,152.13,90.94185132]
[1727230821679,8.07,152.2,152.14,8.07]
[1727230822079,3.2856,152.17,152.14,11.3562]
[1727230822480,3.2856,152.17,152.13,87.65555132]
[1727230822680,3.2856,152.17,152.14,8.07]
[1727230823275,3.2859,152.16,152.12,3.2865]
[1727230823583,3.2859,152.16,152.12,11.3565]
[1727230824580,1.3682,152.21,152.12,8.07]
[1727230824581,3.2862,152.15,152.12,8.07]
[1727230825179,3.2862,152.14,152.12,8.07]
[1727230825576,3.2862,152.14,152.06,82.12740011]
[1727230825577,3.2862,152.14,152.1,3.2871]
[1727230825883,3.2862,152.14,152.1,11.3571]
[1727230828288,11.3562,152.14,152.1,11.3571]
[1727230832690,3.2865,152.13,152.1,3.2871]
[1727230832887,8.07,152.14,152.1,11.3571]
[1727230833293,11.3563,152.14,152.1,11.3571]
[1727230834194,11.3563,152.14,152.1,3.2871]
[1727230835298,3.2865,152.13,152.1,3.2871]
[1727230836186,11.3563,152.14,152.1,3.2871]
[1727230840394,12.70805448,152.21,152.11,3.2868]
[1727230840590,1.3682,152.21,152.13,8.07]
[1727230840792,8.07,152.18,152.13,8.07]
[1727230840999,11.3555,152.18,152.14,3.2861]
[1727230841691,3.2855,152.18,152.14,3.2861]
[1727230841891,11.3555,152.18,152.14,3.2861]
[1727230842395,8.07,152.18,152.15,3.2858]
[1727230842593,11.3552,152.19,152.15,3.2858]
[1727230843997,8.07,152.18,152.14,3.2862]
[1727230844294,8.07,152.17,152.14,3.2862]
[1727230845498,1.3682,152.21,152.15,8.07]
[1727230845696,9.4382,152.21,152.15,8.07]
[1727230845901,8.07,152.2,152.15,8.07]
[1727230846101,11.3551,152.2,152.16,3.2857]
[1727230847004,8.07,152.2,152.16,3.2857]
[1727230847703,11.355,152.2,152.16,3.2857]
[1727230848711,8.07,152.19,152.16,3.2857]
[1727230849304,8.07,152.17,152.11,8.07]
[1727230849506,8.07,152.16,152.11,8.07]
[1727230849704,3.2856,152.17,152.13,3.2863]
[1727230849906,8.07,152.16,152.13,3.2863]
[1727230850104,8.07,152.16,152.11,8.07]
[1727230850501,8.07,152.15,152.1,8.07]
[1727230851006,8.07,152.15,152.13,3.2864]
[1727230851605,8.07,152.16,152.13,3.2864]
[1727230854510,8.07,152.16,152.14,3.2862]
[1727230855815,8.07,152.15,152.13,3.2864]
[1727230856005,8.07,152.14,152.09,8.07]
[1727230856415,8.07,152.13,152.08,8.07]
[1727230856721,8.07,152.13,152.1,3.287]
[1727230858718,3.2863,152.14,152.1,3.287]